fUSD/lending_fUSD_20250104
["ID","MTS","AMOUNT","RATE_DAILY","PERIOD"]
[347641961,1736008232634,-7374.14,8.015e-05,2]
[347641962,1736008232643,-250.0,8.023e-05,2]
[347641963,1736008232653,-4788.67,8.023e-05,2]
[347641964,1736008232663,-333.37,8.063e-05,3]
[347641965,1736008232672,-324.15604758,8.207e-05,2]
[347641966,1736008232682,-554.2,8.219e-05,2]
[347641967,1736008232692,-1000.0,8.219e-05,2]
[347641968,1736008232701,-250.0,8.253e-05,2]
[347641969,1736008232711,-1500.0,8.289e-05,2]
[347641970,1736008232720,-12341.87,8.289e-05,2]
[347641971,1736008232729,-232.64,8.325e-05,2]
[347641972,1736008232739,-799.86,8.325e-05,2]
[347641973,1736008232749,-12890.33,8.325e-05,2]
[347641974,1736008232759,-469.82,8.38e-05,2]
[347641975,1736008232768,-172.76,8.38e-05,2]
[347641976,1736008232777,-200.0,8.439e-05,2]
[347641977,1736008232787,-1728.84,8.496e-05,2]
[347641978,1736008232797,-2000.0,8.496e-05,2]
[347641979,1736008232807,-300.0,8.496e-05,2]
[347641980,1736008232817,-2042.7,8.527e-05,2]
[347641981,1736008232827,-353.39,8.631e-05,2]
[347641982,1736008232837,-7003.73,8.631e-05,2]
[347641983,1736008232846,-9999.99,8.631e-05,2]
[347641984,1736008232855,-175.38,8.751e-05,2]
[347641985,1736008232865,-178.98,8.769e-05,2]
[347641986,1736008232875,-499.99,8.769e-05,2]
[347641987,1736008232886,-150.99,8.769e-05,2]
[347641988,1736008232894,-150.99,8.769e-05,2]
[347641989,1736008232904,-28181.33,8.769e-05,2]
[347641990,1736008232913,-1852.42,8.827e-05,2]
[347641991,1736008232923,-299.99,8.827e-05,2]
[347641992,1736008232932,-5443.81,8.827e-05,2]
[347641993,1736008232942,-2935.72,8.827e-05,2]
[347641994,1736008232952,-640.31,8.909e-05,2]
[347641995,1736008232960,-150.0,9e-05,2]
[347641996,1736008232970,-150.0,9e-05,2]
[347641997,1736008232979,-150.0,9e-05,2]
[347641998,1736008232988,-800.0,9e-05,3]
[347641999,1736008232998,-1921.1561,9e-05,2]
[347642000,1736008233007,-168.8545,9.022e-05,2]
[347642001,1736008233016,-200.0,9.041e-05,2]
[347642002,1736008233027,-21680.05307693,9.099e-05,2]
[347642003,1736008233036,-167.79160638,9.1e-05,2]
[347642004,1736008233045,-503.15992025,9.1e-05,2]
[347642005,1736008233055,-320.61840445,9.1e-05,2]
[347642006,1736008233065,-158.70299027,9.1e-05,2]
[347642007,1736008233075,-1700.0,9.1e-05,3]
[347642008,1736008233084,-71204.05,9.1e-05,2]
[347642009,1736008233094,-500.0,9.122e-05,2]
[347642010,1736008233103,-500.0,9.122e-05,2]
[347642011,1736008233113,-500.0,9.122e-05,2]
[347642012,1736008233123,-500.0,9.122e-05,2]
[347642013,1736008233133,-500.0,9.122e-05,2]
[347642014,1736008233143,-573.29,9.122e-05,2]
[347642015,1736008233153,-562.79,9.122e-05,2]
[347642016,1736008233163,-500.0,9.122e-05,2]
[347642017,1736008233172,-500.0,9.122e-05,2]
[347642018,1736008233182,-500.0,9.122e-05,2]
[347642019,1736008233192,-500.0,9.122e-05,2]
[347642020,1736008233202,-701.31,9.122e-05,2]
[347642021,1736008233212,-437.32,9.141e-05,2]
[347642022,1736008233222,-538.10995885,9.199e-05,2]
[347642023,1736008233232,-500.0,9.199e-05,2]
[347642024,1736008233242,-188.221431,9.199e-05,2]
[347642025,1736008233252,-500.0,9.199e-05,2]
[347642026,1736008233262,-215.11,9.199e-05,2]
[347642027,1736008233271,-500.0,9.199e-05,2]
[347642028,1736008233284,-201.95,9.199e-05,2]
[347642029,1736008233295,-281.980763,9.199e-05,2]
[347642030,1736008233305,-500.0,9.199e-05,2]
[347642031,1736008233315,-500.0,9.199e-05,2]
[347642032,1736008233325,-158.44408375,9.199e-05,2]
[347642033,1736008233335,-500.0,9.199e-05,2]
[347642034,1736008233344,-513.67,9.199e-05,2]
[347642035,1736008233354,-500.0,9.199e-05,2]
[347642036,1736008233367,-500.0,9.199e-05,2]
[347642037,1736008233378,-500.0,9.199e-05,2]
[347642038,1736008233390,-500.0,9.199e-05,2]
[347642039,1736008233400,-2600.0,9.2e-05,3]
[347642040,1736008233411,-1000.0,9.247e-05,2]
[347642041,1736008233421,-508.29116021,9.298e-05,2]
[347642042,1736008233431,-500.0,9.298e-05,2]
[347642043,1736008233440,-500.0,9.298e-05,2]
[347642044,1736008233450,-500.0,9.298e-05,2]
[347642045,1736008233460,-500.0,9.298e-05,2]
[347642046,1736008233470,-500.0,9.299e-05,2]
[347642047,1736008233480,-500.0,9.299e-05,2]
[347642048,1736008233490,-500.0,9.299e-05,2]
[347642049,1736008233500,-500.0,9.299e-05,2]
[347642050,1736008233510,-500.0,9.299e-05,2]
[347642051,1736008233520,-500.0,9.299e-05,2]
[347642052,1736008233530,-500.0,9.299e-05,2]
[347642053,1736008233540,-537.96544589,9.299e-05,2]
[347642054,1736008233550,-630.77,9.299e-05,2]
[347642055,1736008233560,-500.0,9.299e-05,2]
[347642056,1736008233570,-590.26,9.299e-05,2]
[347642057,1736008233581,-587.6,9.299e-05,2]
[347642058,1736008233591,-500.0,9.299e-05,2]
[347642059,1736008233601,-353.97397407,9.299e-05,2]
[347642060,1736008233611,-500.0,9.299e-05,2]
[347642061,1736008233621,-509.79,9.299e-05,2]
[347642062,1736008233633,-588.6,9.299e-05,2]
[347642063,1736008233643,-500.0,9.299e-05,2]
[347642064,1736008233653,-168.19435729,9.299e-05,2]
[347642065,1736008233663,-378.87974956,9.299e-05,2]
[347642066,1736008233673,-500.0,9.299e-05,2]
[347642067,1736008233683,-500.0,9.299e-05,2]
[347642068,1736008233694,-500.0,9.299e-05,2]
[347642069,1736008233705,-500.0,9.299e-05,2]
[347642070,1736008233715,-442.33791929,9.299e-05,2]
[347642071,1736008233725,-500.0,9.299e-05,2]
[347642072,1736008233735,-500.0,9.299e-05,2]
[347642073,1736008233745,-500.0,9.299e-05,2]
[347642074,1736008233755,-500.0,9.299e-05,2]
[347642075,1736008233765,-551.85,9.299e-05,2]
[347642076,1736008233775,-500.0,9.299e-05,2]
[347642077,1736008233785,-500.0,9.299e-05,2]
[347642078,1736008233795,-500.0,9.299e-05,2]
[347642079,1736008233805,-621.24,9.299e-05,2]
[347642080,1736008233815,-500.0,9.299e-05,2]
[347642081,1736008233826,-500.0,9.299e-05,2]
[347642082,1736008233835,-500.0,9.299e-05,2]
[347642083,1736008233845,-500.0,9.299e-05,2]
[347642084,1736008233855,-508.27666858,9.299e-05,2]
[347642085,1736008233865,-553.13,9.299e-05,2]
[347642086,1736008233875,-644.15,9.299e-05,2]
[347642087,1736008233887,-649.03,9.299e-05,2]
[347642088,1736008233897,-566.21,9.299e-05,2]
[347642089,1736008233908,-500.0,9.299e-05,2]
[347642090,1736008233918,-500.0,9.299e-05,2]
[347642091,1736008233928,-500.0,9.299e-05,2]
[347642092,1736008233938,-500.0,9.299e-05,2]
[347642093,1736008233949,-500.0,9.299e-05,2]
[347642094,1736008233959,-218.03986238,9.299e-05,2]
[347642095,1736008233969,-568.91,9.299e-05,2]
[347642096,1736008233979,-500.0,9.299e-05,2]
[347642097,1736008233988,-500.0,9.299e-05,2]
[347642098,1736008233998,-500.0,9.299e-05,2]
[347642099,1736008234008,-500.0,9.299e-05,2]
[347642100,1736008234018,-516.02447952,9.299e-05,2]
[347642101,1736008234029,-504.06543452,9.299e-05,2]
[347642102,1736008234039,-598.57,9.299e-05,2]
[347642103,1736008234049,-500.0,9.299e-05,2]
[347642104,1736008234059,-500.0,9.299e-05,2]
[347642105,1736008234068,-500.0,9.299e-05,2]
[347642106,1736008234078,-500.0,9.299e-05,2]
[347642107,1736008234088,-512.64156063,9.299e-05,2]
[347642108,1736008234098,-500.0,9.299e-05,2]
[347642109,1736008234108,-461.85972583,9.299e-05,2]
[347642110,1736008234118,-876.55,9.299e-05,2]
[347642111,1736008234128,-500.0,9.299e-05,2]
[347642112,1736008234141,-624.03,9.299e-05,2]
[347642113,1736008234150,-618.37101421,9.299e-05,2]
[347642114,1736008234163,-553.32236024,9.299e-05,2]
[347642115,1736008234172,-500.0,9.299e-05,2]
[347642116,1736008234182,-763.65,9.299e-05,2]
[347642117,1736008234192,-3500.0,9.3e-05,3]
[347642118,1736008234203,-500.0,9.396e-05,2]
[347642119,1736008234213,-500.0,9.396e-05,2]
[347642120,1736008234224,-500.0,9.396e-05,2]
[347642121,1736008234234,-164.3,9.396e-05,2]
[347642122,1736008234244,-463.78,9.396e-05,2]
[347642123,1736008234254,-289.47,9.396e-05,2]
[347642124,1736008234264,-500.06,9.396e-05,2]
[347642125,1736008234274,-701.31,9.396e-05,2]
[347642126,1736008234287,-4400.0,9.4e-05,3]
[347642127,1736008234297,-500.0,9.473e-05,2]
[347642128,1736008234306,-188.221431,9.473e-05,2]
[347642129,1736008234316,-193.78,9.473e-05,2]
[347642130,1736008234327,-500.0,9.473e-05,2]
[347642131,1736008234337,-500.0,9.473e-05,2]
[347642132,1736008234347,-513.67,9.473e-05,2]
[347642133,1736008234359,-179.02615171,9.473e-05,2]
[347642134,1736008234369,-373.86,9.473e-05,2]
[347642135,1736008234379,-310.7429,9.489e-05,2]
[347642136,1736008234573,-654.203,9.5e-05,2]
[347642137,1736008234583,-150.0,9.5e-05,2]
[347642138,1736008234594,-800.0,9.5e-05,3]
[347642139,1736008234604,-500.0,9.572e-05,2]
[347642140,1736008234613,-500.0,9.572e-05,2]
[347642141,1736008234624,-500.0,9.572e-05,2]
[347642142,1736008234635,-500.0,9.572e-05,2]
[347642143,1736008234645,-206.68,9.573e-05,2]
[347642144,1736008234655,-500.0,9.573e-05,2]
[347642145,1736008234664,-500.0,9.573e-05,2]
[347642146,1736008234673,-500.0,9.573e-05,2]
[347642147,1736008234683,-876.55,9.573e-05,2]
[347642148,1736008234692,-500.0,9.573e-05,2]
[347642149,1736008234701,-624.03,9.573e-05,2]
[347642150,1736008234711,-500.0,9.573e-05,2]
[347642151,1736008234719,-763.65,9.573e-05,2]
[347642152,1736008234729,-184.55,9.584e-05,2]
[347642153,1736008234738,-47199.63,9.589e-05,2]
[347642154,1736008234747,-32973.75966995,9.6e-05,2]
[347642155,1736008234757,-800.0,9.6e-05,3]
[347642156,1736008234766,-500.0,9.67e-05,2]
[347642157,1736008234775,-500.0,9.67e-05,2]
[347642158,1736008234784,-464.78895786,9.67e-05,2]
[347642159,1736008234793,-701.31,9.67e-05,2]
[347642160,1736008234803,-800.0,9.7e-05,3]
[347642161,1736008234813,-150.0,9.707e-05,2]
[347642162,1736008234822,-150.0,9.713e-05,2]
[347642163,1736008234832,-150.0,9.714e-05,2]
[347642164,1736008234842,-150.0,9.714e-05,2]
[347642165,1736008234852,-150.0,9.716e-05,2]
[347642166,1736008234861,-150.0,9.718e-05,2]
[347642167,1736008234870,-150.0,9.721e-05,2]
[347642168,1736008234880,-150.0,9.723e-05,2]
[347642169,1736008234892,-150.0,9.731e-05,2]
[347642170,1736008234902,-150.0,9.734e-05,2]
[347642171,1736008234911,-150.0,9.736e-05,2]
[347642172,1736008234920,-150.40249174,9.738e-05,2]
[347642173,1736008234930,-150.0,9.739e-05,2]
[347642174,1736008234940,-150.0,9.741e-05,2]
[347642175,1736008234950,-150.0,9.743e-05,2]
[347642176,1736008234959,-150.0,9.745e-05,2]
[347642177,1736008234970,-150.0,9.747e-05,2]
[347642178,1736008234980,-500.0,9.747e-05,2]
[347642179,1736008234990,-500.0,9.747e-05,2]
[347642180,1736008234999,-500.0,9.747e-05,2]
[347642181,1736008235008,-513.67,9.747e-05,2]
[347642182,1736008235017,-150.0,9.748e-05,2]
[347642183,1736008235027,-150.0,9.749e-05,2]
[347642184,1736008235037,-1500.0,9.749e-05,2]
[347642185,1736008235047,-150.0,9.757e-05,2]
[347642186,1736008235056,-150.0,9.758e-05,2]
[347642187,1736008235066,-150.0,9.763e-05,2]
[347642188,1736008235075,-150.0,9.763e-05,2]
[347642189,1736008235084,-150.0,9.775e-05,2]
[347642190,1736008235094,-150.0,9.775e-05,2]
[347642191,1736008235103,-150.0,9.775e-05,2]
[347642192,1736008235112,-150.0,9.775e-05,2]
[347642193,1736008235122,-150.0,9.778e-05,2]
[347642194,1736008235131,-150.0,9.781e-05,2]
[347642195,1736008235142,-150.0,9.783e-05,2]
[347642196,1736008235151,-150.0,9.783e-05,2]
[347642197,1736008235161,-150.0,9.783e-05,2]
[347642198,1736008235171,-1500.0,9.793e-05,2]
[347642199,1736008235181,-150.0,9.795e-05,2]
[347642200,1736008235191,-150.0,9.796e-05,2]
[347642201,1736008235200,-150.0,9.797e-05,2]
[347642202,1736008235209,-800.0,9.8e-05,3]
[347642203,1736008235219,-150.0,9.802e-05,2]
[347642204,1736008235230,-150.0,9.802e-05,2]
[347642205,1736008235240,-150.0,9.803e-05,2]
[347642206,1736008235249,-150.0,9.806e-05,2]
[347642207,1736008235259,-150.0,9.807e-05,2]
[347642208,1736008235268,-150.0,9.807e-05,2]
[347642209,1736008235280,-150.0,9.809e-05,2]
[347642210,1736008235291,-150.0,9.81e-05,2]
[347642211,1736008235300,-150.0,9.812e-05,2]
[347642212,1736008235309,-150.0,9.814e-05,2]
[347642213,1736008235318,-150.0,9.817e-05,2]
[347642214,1736008235328,-150.0,9.819e-05,2]
[347642215,1736008235337,-341.71493999,9.82e-05,2]
[347642216,1736008235347,-150.0,9.822e-05,2]
[347642217,1736008235357,-150.0,9.822e-05,2]
[347642218,1736008235367,-150.0,9.826e-05,2]
[347642219,1736008235377,-150.0,9.827e-05,2]
[347642220,1736008235388,-150.0,9.828e-05,2]
[347642221,1736008235397,-150.0,9.828e-05,2]
[347642222,1736008235407,-150.0,9.832e-05,2]
[347642223,1736008235418,-1500.0,9.835e-05,2]
[347642224,1736008235429,-150.0,9.839e-05,2]
[347642225,1736008235438,-150.0,9.839e-05,2]
[347642226,1736008235449,-150.0,9.841e-05,2]
[347642227,1736008235459,-150.0,9.841e-05,2]
[347642228,1736008235470,-150.0,9.842e-05,2]
[347642229,1736008235480,-150.0,9.843e-05,2]
[347642230,1736008235489,-500.0,9.846e-05,2]
[347642231,1736008235498,-386.25,9.846e-05,2]
[347642232,1736008235508,-500.0,9.846e-05,2]
[347642233,1736008235518,-500.0,9.846e-05,2]
[347642234,1736008235527,-150.0,9.847e-05,2]
[347642235,1736008235537,-500.0,9.847e-05,2]
[347642236,1736008235547,-500.0,9.847e-05,2]
[347642237,1736008235556,-500.0,9.847e-05,2]
[347642238,1736008235565,-876.55,9.847e-05,2]
[347642239,1736008235575,-500.0,9.847e-05,2]
[347642240,1736008235585,-624.03,9.847e-05,2]
[347642241,1736008235594,-500.0,9.847e-05,2]
[347642242,1736008235603,-150.0,9.849e-05,2]
[347642243,1736008235613,-150.0,9.85e-05,2]
[347642244,1736008235622,-150.0,9.853e-05,2]
[347642245,1736008235632,-150.0,9.861e-05,2]
[347642246,1736008235643,-150.0,9.861e-05,2]
[347642247,1736008235653,-150.0,9.863e-05,2]
[347642248,1736008235663,-150.0,9.866e-05,2]
[347642249,1736008235674,-150.0,9.869e-05,2]
[347642250,1736008235685,-150.0,9.869e-05,2]
[347642251,1736008235694,-150.0,9.87e-05,2]
[347642252,1736008235704,-433.82255504,9.872e-05,2]
[347642253,1736008235714,-506.48225342,9.872e-05,2]
[347642254,1736008235723,-156.36149,9.872e-05,2]
[347642255,1736008235733,-500.0,9.872e-05,2]
[347642256,1736008235744,-500.0,9.872e-05,2]
[347642257,1736008235754,-500.0,9.872e-05,2]
[347642258,1736008235763,-500.0,9.872e-05,2]
[347642259,1736008235773,-507.60062226,9.872e-05,2]
[347642260,1736008235783,-500.0,9.872e-05,2]
[347642261,1736008235793,-214.031946,9.872e-05,2]
[347642262,1736008235804,-500.0,9.872e-05,2]
[347642263,1736008235815,-500.0,9.872e-05,2]
[347642264,1736008235825,-500.0,9.872e-05,2]
[347642265,1736008235834,-500.0,9.872e-05,2]
[347642266,1736008235844,-500.0,9.872e-05,2]
[347642267,1736008235854,-1500.0,9.872e-05,2]
[347642268,1736008235863,-14445.1734,9.872e-05,2]
[347642269,1736008235873,-5514.2602,9.873e-05,2]
[347642270,1736008235882,-37093.8587,9.873e-05,2]
[347642271,1736008235895,-12726.8075,9.873e-05,2]
[347642272,1736008235904,-1000.0,9.873e-05,2]
[347642273,1736008235914,-150.0,9.873e-05,2]
[347642274,1736008235923,-150.0,9.874e-05,2]
[347642275,1736008235933,-1500.0,9.876e-05,2]
[347642276,1736008235943,-150.0,9.886e-05,2]
[347642277,1736008235952,-150.0,9.886e-05,2]
[347642278,1736008235961,-150.0,9.888e-05,2]
[347642279,1736008235971,-150.0,9.89e-05,2]
[347642280,1736008235981,-150.0,9.891e-05,2]
[347642281,1736008235991,-150.0,9.892e-05,2]
[347642282,1736008236000,-150.0,9.894e-05,2]
[347642283,1736008236010,-150.0,9.897e-05,2]
[347642284,1736008236019,-29801.7711,9.898e-05,2]
[347642285,1736008236029,-640.31,9.899e-05,2]
[347642286,1736008236039,-1600.0,9.9e-05,3]
[347642287,1736008236049,-150.0,9.901e-05,2]
[347642288,1736008236058,-150.0,9.909e-05,2]
[347642289,1736008236067,-150.0,9.909e-05,2]
[347642290,1736008236077,-150.0,9.922e-05,2]
[347642291,1736008236086,-150.0,9.928e-05,2]
[347642292,1736008236096,-150.0,9.93e-05,2]
[347642293,1736008236105,-150.0,9.931e-05,2]
[347642294,1736008236115,-150.0,9.933e-05,2]
[347642295,1736008236124,-150.0,9.936e-05,2]
[347642296,1736008236137,-159.48692195,9.937e-05,2]
[347642297,1736008236146,-150.0,9.937e-05,2]
[347642298,1736008236165,-150.0,9.939e-05,2]
[347642299,1736008236175,-150.0,9.939e-05,2]
[347642300,1736008236184,-150.0,9.941e-05,2]
[347642301,1736008236193,-150.0,9.943e-05,2]
[347642302,1736008236204,-150.0,9.944e-05,2]
[347642303,1736008236213,-500.0,9.944e-05,2]
[347642304,1736008236222,-500.0,9.944e-05,2]
[347642305,1736008236232,-701.31,9.944e-05,2]
[347642306,1736008236242,-150.0,9.945e-05,2]
[347642307,1736008236251,-150.0,9.945e-05,2]
[347642308,1736008236260,-150.0,9.951e-05,2]
[347642309,1736008236270,-150.0,9.952e-05,2]
[347642310,1736008236280,-150.0,9.953e-05,2]
[347642311,1736008236294,-150.0,9.957e-05,2]
[347642312,1736008236304,-150.0,9.959e-05,2]
[347642313,1736008236314,-150.0,9.96e-05,2]
[347642314,1736008236324,-150.0,9.96e-05,2]
[347642315,1736008236334,-150.0,9.96e-05,2]
[347642316,1736008236344,-150.0,9.961e-05,2]
[347642317,1736008236353,-150.0,9.961e-05,2]
[347642318,1736008236363,-150.54213416,9.969e-05,2]
[347642319,1736008236373,-500.0,9.972e-05,2]
[347642320,1736008236383,-500.0,9.972e-05,2]
[347642321,1736008236393,-500.0,9.972e-05,2]
[347642322,1736008236402,-500.0,9.972e-05,2]
[347642323,1736008236411,-340.4351311,9.972e-05,2]
[347642324,1736008236422,-500.0,9.972e-05,2]
[347642325,1736008236432,-500.0,9.972e-05,2]
[347642326,1736008236443,-500.0,9.972e-05,2]
[347642327,1736008236454,-500.0,9.972e-05,2]
[347642328,1736008236464,-500.0,9.972e-05,2]
[347642329,1736008236474,-500.0,9.972e-05,2]
[347642330,1736008236484,-500.0,9.972e-05,2]
[347642331,1736008236493,-500.0,9.972e-05,2]
[347642332,1736008236504,-500.0,9.972e-05,2]
[347642333,1736008236514,-500.0,9.972e-05,2]
[347642334,1736008236524,-310.0,9.972e-05,2]
[347642335,1736008236534,-500.0,9.972e-05,2]
[347642336,1736008236543,-500.0,9.972e-05,2]
[347642337,1736008236553,-570.78,9.972e-05,2]
[347642338,1736008236563,-500.0,9.972e-05,2]
[347642339,1736008236572,-500.0,9.972e-05,2]
[347642340,1736008236581,-500.0,9.972e-05,2]
[347642341,1736008236591,-500.0,9.972e-05,2]
[347642342,1736008236600,-500.0,9.972e-05,2]
[347642343,1736008236610,-500.0,9.972e-05,2]
[347642344,1736008236619,-500.0,9.972e-05,2]
[347642345,1736008236629,-822.73,9.972e-05,2]
[347642346,1736008236640,-500.0,9.972e-05,2]
[347642347,1736008236649,-500.0,9.972e-05,2]
[347642348,1736008236659,-500.0,9.972e-05,2]
[347642349,1736008236668,-500.0,9.972e-05,2]
[347642350,1736008236677,-150.0,9.977e-05,2]
[347642351,1736008236687,-150.0,9.978e-05,2]
[347642352,1736008236696,-157.65653054,9.98e-05,2]
[347642353,1736008236705,-143746.0785386,9.98e-05,2]
[347642354,1736008236914,-2810.3438178,9.98e-05,2]
[347642355,1736008236926,-520.70061848,9.98e-05,2]
[347642356,1736008236938,-46434.51387732,9.98e-05,2]
[347642357,1736008236951,-32815.95991005,9.98e-05,2]
[347642478,1736008238308,-1110.34814544,7.919e-05,2]
[347642480,1736008238318,-1110.34814542,7.923e-05,2]
[347642482,1736008238327,-500.0,9.122e-05,2]
[347642484,1736008238336,-517393.45469412,9.98e-05,2]
[347642486,1736008238345,-150.0,9.98e-05,2]
[347642488,1736008238354,-150.0,9.984e-05,2]
[347642490,1736008238365,-150.0,9.995e-05,2]
[347642492,1736008238375,-8947.7313973,9.997e-05,2]
[347642494,1736008238384,-934.5527989,9.997e-05,2]
[347642495,1736008238394,-780.5432869,9.997e-05,2]
[347642497,1736008238403,-4923.5885415,9.997e-05,2]
[347642499,1736008238412,-530454.47199328,9.998e-05,2]
[347642501,1736008238421,-1781.079,9.998e-05,2]
[347642503,1736008238430,-163.347,9.998e-05,2]
[347642505,1736008238440,-500.0,9.999e-05,2]
[347642507,1736008238449,-19722806.16534184,0.0001,2]
[347642510,1736008238465,-47680.60712265,0.0001,2]
[347642512,1736008238476,-6118.58123631,0.0001,2]
[347642714,1736008240430,-500.0,9.122e-05,2]
[347642717,1736008240441,-26987.78432684,0.0001,2]
[347642726,1736008240531,-2160.20906578,0.0001,2]
[347643337,1736008246368,-1110.34814542,7.927e-05,2]
[347643339,1736008246377,-500.0,9.396e-05,2]
[347643341,1736008246389,-500.0,9.67e-05,2]
[347643343,1736008246399,-500.0,9.944e-05,2]
[347643345,1736008246408,-1466.65185458,0.0001,2]
[347643348,1736008246425,-2663.00578709,0.0001,2]
[347643363,1736008246559,-9644.88317974,0.0001,2]
[347643365,1736008246570,-29459.933,0.0001,2]
[347643367,1736008246581,-10851.17001,0.0001,2]
[347643369,1736008246592,-899.999999,0.0001,2]
[347644423,1736009297204,177.87,6.855e-05,2]
[347644431,1736009364128,-157.23,7.397e-05,2]
[347644432,1736009408815,170.2646887,6.967e-05,7]
[347644433,1736009408838,79.05350582,6.967e-05,7]
[347644440,1736009431531,-587.17,8.219e-05,2]
[347644441,1736009431540,-200.0,8.555e-05,2]
[347644442,1736009431551,-250.0,8.559e-05,2]
[347644443,1736009431561,-1476.25,8.573e-05,2]
[347644444,1736009431571,-1604.22317759,8.61e-05,2]
[347644445,1736009431581,-3497.31,8.61e-05,2]
[347644446,1736009431595,-300.0,8.612e-05,2]
[347644447,1736009431605,-1913.21,8.651e-05,2]
[347644448,1736009431615,-322.32211033,8.665e-05,2]
[347644449,1736009431624,-250.0,8.665e-05,2]
[347644450,1736009431634,-289.29,8.674e-05,2]
[347644451,1736009431644,-150.0,8.685e-05,2]
[347644452,1736009431654,-203.33,8.687e-05,2]
[347644453,1736009431665,-1124.42471208,8.693e-05,2]
[347644454,1736009431800,-718.78087629,8.693e-05,2]
[347644455,1736009431859,-9.21441163,8.693e-05,2]
[347644456,1736009431869,-164.79,8.703e-05,2]
[347644457,1736009431880,-297.3171396,8.713e-05,2]
[347644458,1736009431891,-23602.6828604,8.713e-05,2]
[347644459,1736009431902,-183.6,8.721e-05,2]
[347644460,1736009431912,-1000.0,8.721e-05,2]
[347644461,1736009431922,-250.0,8.739e-05,2]
[347644462,1736009431932,-270.59,8.743e-05,2]
[347644463,1736009431941,-1500.0,8.76e-05,2]
[347644464,1736009431950,-3686.77,8.767e-05,2]
[347644465,1736009431959,-500.0,8.767e-05,2]
[347644466,1736009431969,-1822.31704965,8.81e-05,2]
[347644973,1736009437466,-515.28705452,8.81e-05,2]
[347644975,1736009437478,-766.34341095,8.81e-05,2]
[347644977,1736009437489,-242.72248488,8.81e-05,2]
[347644979,1736009437499,-279.2,8.84e-05,2]
[347644981,1736009437509,-150.0,9e-05,2]
[347644983,1736009437518,-280.09917614,9e-05,2]
[347644985,1736009437527,-150.0,9e-05,2]
[347644987,1736009437536,-322.32211032,9.019e-05,2]
[347644989,1736009437545,-454.47,9.077e-05,2]
[347644991,1736009437557,-275.88622866,9.091e-05,2]
[347644995,1736009437577,-1041.43377134,9.091e-05,2]
[347644997,1736009437591,-500.0,9.1e-05,2]
[347644999,1736009437603,-500.0,9.1e-05,2]
[347645001,1736009437615,-500.0,9.1e-05,2]
[347645002,1736009437626,-500.0,9.1e-05,2]
[347645003,1736009437638,-500.0,9.1e-05,2]
[347645004,1736009437648,-500.0,9.1e-05,2]
[347645005,1736009437660,-500.0,9.1e-05,2]
[347645006,1736009437672,-500.0,9.122e-05,2]
[347645007,1736009437683,-500.0,9.122e-05,2]
[347645008,1736009437694,-500.0,9.122e-05,2]
[347645009,1736009437705,-476.54,9.199e-05,2]
[347645011,1736009437717,-303.2,9.278e-05,2]
[347645014,1736009437728,-547.24012438,9.299e-05,2]
[347645016,1736009437740,-500.0,9.299e-05,2]
[347645018,1736009437751,-788.45,9.299e-05,2]
[347645020,1736009437762,-500.0,9.299e-05,2]
[347645022,1736009437774,-536.40920119,9.373e-05,2]
[347645024,1736009437785,-500.0,9.373e-05,2]
[347645027,1736009437797,-500.0,9.373e-05,2]
[347645028,1736009437808,-500.0,9.373e-05,2]
[347645030,1736009437818,-500.0,9.373e-05,2]
[347645033,1736009437828,-322.32211032,9.373e-05,2]
[347645035,1736009437838,-500.0,9.373e-05,2]
[347645037,1736009437850,-500.0,9.373e-05,2]
[347645039,1736009437861,-296.43896969,9.396e-05,2]
[347645041,1736009437872,-500.0,9.396e-05,2]
[347645043,1736009437884,-500.0,9.396e-05,2]
[347645045,1736009437895,-639.826,9.5e-05,2]
[347645048,1736009437905,-150.0,9.5e-05,2]
[347645050,1736009437917,-500.0,9.573e-05,2]